Cogmind - Beta 10.2 @@@ ROGUE MODE // 2022.02.05 @ 03:06:54 Player: Conner Result: Destroyed by D-53 Grenadier with Mini Grenade Launcher Performance ------------- Evolutions (2) 1000 Regions Visited (4) 800 Robots Destroyed (101) 505 Value Destroyed (2659) 2659 Prototype IDs (10) 200 Alien Tech Used (0) 0 Bonus (950) 950 TOTAL SCORE: 6114 Bonus ------- High Alert Combat Kills 341 Follower Combat Kills 684 Friendly Fire -75 Cogmind --------- Core Integrity 0/550 Matter 260/300 Energy 460/460 System Corruption 2% Temperature Cool (0) Movement Hovering (186) Ox2 Location -8/Storage Parts ------- > --- POWER (2) -------- Heavy Ion Engine Heavy Ion Engine > --- PROPULSION (3) --- Light Treads Aerolev Unit Aerolev Unit > --- UTILITY (4) ------ Improved Heat Sink High-capacity Storage Unit Terrain Scan Processor Hacking Suite > --- WEAPON (2) ------- Compact Ion Cannon > --- INVENTORY (12) --- Heavy Ion Engine Deuterium Engine Deuterium Engine Light Nuclear Core Wheel Aerolev Unit Aerolev Unit Aerolev Unit Large Storage Unit Heavy EM Shotgun Heavy EM Shotgun Peak State ------------ > --- POWER ------------ Heavy Ion Engine Light Nuclear Core > --- PROPULSION ------- Aerolev Unit Aerolev Unit Aerolev Unit > --- UTILITY ---------- Improved Heat Sink High-capacity Storage Unit Terrain Scan Processor Hacking Suite > --- WEAPON ----------- Heavy EM Shotgun Compact Ion Cannon > --- INVENTORY -------- Improved Ion Engine Heavy Ion Engine Deuterium Engine Light Deuterium Engine Light Nuclear Core Aluminum Leg Improved Heat Sink Large Storage Unit Heavy EM Shotgun Improved Light Cannon Assault Cannon Shock Bomb Launcher [Rating: 40] Favorites ----------- Power Heavy Ion Engine Engine Heavy Ion Engine Power Core Light Nuclear Core Propulsion Wheel Treads Light Treads Leg Aluminum Leg Wheel Wheel Hover Unit Aerolev Unit Flight Unit Improved Flight Unit Utility Terrain Scan Processor Device Improved Terrain Scanner Storage High-capacity Storage Unit Processor Terrain Scan Processor Hackware Hacking Suite Protection Heavy Armor Plating Weapon Small Laser Energy Gun Small Laser Energy Cannon Compact Ion Cannon Ballistic Gun Heavy Assault Rifle Ballistic Cannon Flak Cannon Launcher Shock Bomb Launcher Slashing Weapon Katana Special Melee Weapon Datajack Build | -11 -10 -9 -8 -8 ------- Run | Scr Mat Mat Mat Sto Slots Evolved 4 | . . 2 2 . Power 1 | . . . 1 . Propulsion 1 | . . 1 . . Utility 2 | . . 1 1 . Weapon . | . . . . . Parts Attached 122 | 9 4 51 32 26 Power 22 | 1 1 10 5 5 Engine 17 | 1 1 10 2 3 Core 5 | . . . 3 2 Reactor . | . . . . . Propulsion 48 | 2 2 21 10 13 Treads 2 | . . . . 2 Leg 14 | . . . 9 5 Wheel 23 | 2 2 19 . . Hover 7 | . . . 1 6 Flight 2 | . . 2 . . Utility 16 | 4 . 2 8 2 Device 6 | 2 . . 3 1 Storage 5 | 1 . 1 2 1 Processor 2 | 1 . 1 . . Hackware 1 | . . . 1 . Protection 2 | . . . 2 . Artifact . | . . . . . Weapon 36 | 2 1 18 9 6 Energy Gun 26 | 2 . 17 5 2 Energy Cannon 1 | . . . . 1 Ballistic Gun 1 | . . 1 . . Ballistic Cannon 2 | . . . 2 . Launcher 4 | . . . 1 3 Special Weapon . | . . . . . Impact Weapon . | . . . . . Slashing Weapon 1 | . . . 1 . Piercing Weapon . | . . . . . Special Melee Weapon 1 | . 1 . . . Unidentified Prototypes 8 | . . 3 3 2 Parts Lost 28 | . . 12 12 4 Power 5 | . . 1 3 1 Propulsion 8 | . . 3 4 1 Utility 2 | . . . 2 . Weapon 13 | . . 8 3 2 Highest Loss Streak 8 | . . 5 8 2 Average Slot Usage (%) 96 | . 100 97 93 99 Engine 10 | . 14 10 4 13 Core 4 | . . . 12 4 Leg 9 | . . . 22 11 Wheel 15 | . 28 32 1 . Hover 3 | . . . . 13 Device 9 | . 14 11 8 9 Storage 9 | . . 11 7 9 Processor 10 | . 14 11 9 9 Hackware 4 | . . . 6 9 Energy Gun 12 | . 20 17 10 5 Energy Cannon 1 | . . . . 5 Ballistic Cannon 1 | . . . 3 3 Special Melee Weapon 1 | . 7 2 . . Naked Turns . | . . . . . Heaviest Build 63 | 9 9 48 63 59 Greatest Support 40 | 20 20 40 35 40 Greatest Overweight (x) 6 | . . 4 6 4 Average Overweight (x) 1 | . . 1 . 1 Largest Inventory Capacity 12 | 6 4 12 12 12 Average Capacity 10 | 4 4 11 9 11 Most Carried 12 | 4 4 12 12 12 Average Carried 10 | 2 3 10 8 11 Final Capacity 12 | 4 4 12 10 12 Final Carried 12 | 4 4 12 10 11 Class Distribution -------------------- 72% | Scavenger-Mutant 24% | Mutant Dominant Class ---------------- Mutant | -10/Materials Scavenger-Mutant | -9/Materials Scavenger-Mutant | -8/Materials Mutant | -8/Storage Resources | -11 -10 -9 -8 -8 ----------- Run | Scr Mat Mat Mat Sto Matter Collected 1655 | 290 20 627 387 331 Remotely . | . . . . . Salvage Created 4155 | 159 71 2100 1083 742 Parts 246 | 14 8 130 54 40 Haulers Intercepted 10 | . . 3 3 4 Recyclers Shooed 3 | 1 . 1 1 . Parts Field Recycled . | . . . . . Retrieved Matter . | . . . . . Parts Self-Destructed . | . . . . . Prevented . | . . . . . Kills | -11 -10 -9 -8 -8 ------- Run | Scr Mat Mat Mat Sto Combat Hostiles Destroyed 64 | . 3 34 18 9 Melee 5 | . . 1 4 . Guns 49 | . 3 32 13 1 Cannons 6 | . . . . 6 AOE 4 | . . 1 1 2 Classes Destroyed 15 | 3 1 9 1 1 Worker 6 | 2 1 1 1 1 Builder 5 | . . 2 . 3 Tunneler 3 | 3 . . . . Hauler 10 | . . 3 3 4 Recycler 5 | 1 . 4 . . Mechanic 1 | . . . 1 . Operator 2 | . . 1 . 1 Watcher 5 | . . 4 1 . Swarmer 13 | . 3 6 3 1 Grunt 30 | . . 17 10 3 Brawler 1 | . . 1 . . Duelist 1 | . . 1 . . Protector 1 | . . 1 . . Sentry 17 | . . 8 5 4 Demolisher 1 | . . . . 1 Best Kill Streak 5 | 3 3 4 5 4 Combat Bots Only 4 | . 3 4 4 2 Max Kills in Single Turn 3 | 1 1 2 1 3 Gunslinging 1 | . . 1 . . Exploded 1 | . . 1 1 1 Melee 1 | . . 1 1 . Uniques/NPCs Destroyed . | . . . . . Combat | -11 -10 -9 -8 -8 -------- Run | Scr Mat Mat Mat Sto Damage Taken 4442 | . 123 1560 1784 975 Core 834 | . 24 259 362 189 Absorbed by Shields . | . . . . . Core Remaining (%) 75 | 100 90 35 . . Volleys Fired 300 | 14 12 153 72 49 Largest 2 | 2 2 2 2 2 Hottest 140 | 90 90 112 122 140 Shots Fired 469 | 28 19 235 113 74 Gun 404 | 28 19 235 104 18 Cannon 48 | . . . 5 43 Launcher 17 | . . . 4 13 Special . | . . . . . Kinetic 33 | . . 17 5 11 Thermal 295 | 28 19 114 102 32 Explosive . | . . . . . Electromagnetic 141 | . . 104 6 31 Robot Hit Streak 19 | 4 6 19 9 10 Robot Miss Streak 7 | 3 4 7 3 5 Penetration Max . | . . . . . Secondary Targets 5 | . 2 2 1 . Max Gunslinging Chain 1 | . 1 1 1 . Shots Hit Robots 305 | 17 10 149 83 46 Core Hits 171 | 7 5 82 41 36 Critical Hits 3 | . . 1 . 2 Critical Kills . | . . . . . Critical Parts Destroyed 3 | . . 1 . 2 Melee Attacks 18 | . 1 . 17 . Impact . | . . . . . Slashing 17 | . . . 17 . Piercing . | . . . . . Sneak Attacks . | . . . . . Combat Hostiles . | . . . . . Follow-up Attacks . | . . . . . Damage Inflicted 5850 | 162 129 2361 1802 1396 Guns 3934 | 162 129 2128 1315 200 Cannons 912 | . . . 41 871 Explosions 740 | . . 228 187 325 Melee 238 | . . . 238 . Ramming 26 | . . 5 21 . Kinetic 440 | . . 194 41 205 Thermal 3350 | 162 129 1050 1296 713 Explosive 33 | . . . . 33 Electromagnetic 1763 | . . 1112 206 445 Impact . | . . . . . Slashing 238 | . . . 238 . Piercing . | . . . . . Highest Corruption 8 | . . 8 2 2 Average Corruption 2 | . . 3 1 2 Corruption Purged . | . . . . . Effects 37 | . . 15 12 10 Message Errors 8 | . . 1 3 4 Matter Fused 3 | . . 3 . . Heat Flow Errors 5 | . . 4 . 1 Energy Discharges 6 | . . 2 4 . Data Loss (minor) 6 | . . 3 1 2 Targeting Errors 8 | . . 1 4 3 Weapon Failures 1 | . . 1 . . Overload Shots . | . . . . . Overflow Damage 19 | . . 4 . 15 Projectiles 7 | . . . . 7 Explosions 12 | . . 4 . 8 Melee . | . . . . . Knockbacks 4 | . . . 1 3 Impact . | . . . . . Kinetic 4 | . . . 1 3 Secondary . | . . . . . Self-Inflicted Damage 344 | . . 116 66 162 Shots 12 | . . 4 3 5 Rammed 5 | . . 1 4 . Targets Rammed 5 | . . 1 4 . Kicked . | . . . . . Crushed . | . . . . . Highest Temperature 664 | 160 120 382 664 171 Average Temperature 96 | 61 46 65 195 49 Received Heat Transfer 1590 | . 6 576 864 144 Effects 26 | . . 4 22 . Shutdowns 3 | . . . 3 . Energy Bleed 4 | . . 1 3 . Interference 7 | . . 2 5 . Matter Decay 2 | . . 1 1 . Short Circuit 1 | . . . 1 . Damage (minor) 3 | . . . 3 . Damage (major) 6 | . . . 6 . Siege Activations . | . . . . . Robots Corrupted 1 | . . 1 . . Combat Hostiles . | . . . . . Parts Fried 2 | . . 2 . . Impact Corruptions . | . . . . . Robots Melted . | . . . . . Combat Hostiles . | . . . . . Parts Melted 10 | . 3 . 5 2 Heat Transferred 6498 | 434 335 2260 2494 975 Parts Sabotaged . | . . . . . Parts Stolen . | . . . . . Parts Stripped . | . . . . . Power Chain Reactions 9 | . . 7 1 1 Missiles Intercepted . | . . . . . Alert | -11 -10 -9 -8 -8 ------- Run | Scr Mat Mat Mat Sto Peak Influence 835 | 30 195 767 504 835 Initial 293 | . 19 81 293 5 Average 292 | 12 147 284 262 391 Maximum Alert Level 3 | . . 3 2 3 Low Security (%) 42 | 100 100 55 30 19 Level 1 25 | . . 8 43 42 Level 2 26 | . . 31 26 22 Level 3 5 | . . 4 . 15 Level 4 . | . . . . . Level 5 . | . . . . . High Security . | . . . . . Max Security . | . . . . . Squads Dispatched 13 | . 1 7 1 4 Investigation 1 | . . 1 . . Extermination . | . . . . . Reinforcement 9 | . 1 5 1 2 Assault 2 | . . 1 . 1 Garrison 1 | . . . . 1 Intercept . | . . . . . Construction Impeded 1 | . . . . 1 Haulers Reinforced . | . . . . . Stealth | -11 -10 -9 -8 -8 --------- Run | Scr Mat Mat Mat Sto Distress Signals 4 | . . 2 1 1 Communications Jammed . | . . . . . Distress Signals . | . . . . . Times Spotted 139 | . 12 62 32 33 Peak Tracking Total 6 | . 6 5 6 5 Tactical Retreats 16 | . . 10 3 3 Traps | -11 -10 -9 -8 -8 ------- Run | Scr Mat Mat Mat Sto Traps Triggered 2 | . . 1 1 . Indirectly . | . . . . . Trap Hack Attempts . | . . . . . Triggered . | . . . . . Disarmed . | . . . . . Reprogrammed . | . . . . . Reused . | . . . . . Traps Extracted . | . . . . . Installed . | . . . . . Triggered . | . . . . . Machines | -11 -10 -9 -8 -8 ---------- Run | Scr Mat Mat Mat Sto Machines Disabled 13 | . . 5 . 8 Max in Single Turn 2 | . . 1 . 2 Machines Sabotaged . | . . . . . Garrisons Compromised . | . . . . . Overloaded Fab Kills . | . . . . . Fab Network Shutdowns . | . . . . . Hacking | -11 -10 -9 -8 -8 --------- Run | Scr Mat Mat Mat Sto Machines Accessed 21 | . 4 8 1 8 Terminals 15 | . 3 6 1 5 Fabricators . | . . . . . Repair Stations 1 | . . 1 . . Recycling Units 4 | . 1 1 . 2 Scanalyzers . | . . . . . Garrison Access 1 | . . . . 1 Total Hacks 72 | . 10 30 9 23 Successful 46 | . 7 17 6 16 Failed 26 | . 3 13 3 7 Catastrophic 6 | . . 3 1 2 Database Lockouts . | . . . . . Manual 53 | . 7 20 6 20 Terminals 53 | . 6 21 9 17 Fabricators . | . . . . . Repair Stations 6 | . . 6 . . Recycling Units 12 | . 4 3 . 5 Scanalyzers . | . . . . . Garrison Access 1 | . . . . 1 Terminal Hacks 13 | . 1 3 5 4 Robot Analysis 4 | . . 1 2 1 Prototype ID Bank 1 | . . . . 1 Branch Access Points 1 | . . . . 1 Alert Level 1 | . 1 . . . Unreport Threat 4 | . . 1 3 . Zone Layout 2 | . . 1 . 1 Fabricator Hacks . | . . . . . Repair Station Hacks 5 | . . 5 . . Scan Component 2 | . . 2 . . Repair 2 | . . 2 . . Refit 1 | . . 1 . . Recycling Unit Hacks 5 | . 2 1 . 2 Retrieve Matter 1 | . 1 . . . Retrieve Components 4 | . 1 1 . 2 Scanalyzer . | . . . . . Garrison Access Hacks . | . . . . . Unauthorized Hacks 23 | . 4 8 1 10 Terminals 16 | . 2 6 1 7 Track 4 | . . 2 . 2 Assimilate 1 | . 1 . . . Botnet 10 | . 1 3 1 5 Disrupt 1 | . . 1 . . Fabricators . | . . . . . Repair Stations . | . . . . . Recycling Units 6 | . 2 2 . 2 Reject 2 | . 1 1 . . Mask 4 | . 1 1 . 2 Scanalyzers . | . . . . . Garrison Access 1 | . . . . 1 Reprogram 1 | . . . . 1 Data Cores Recovered 1 | . . . . 1 Used . | . . . . . Hacking Detections 21 | . 4 8 1 8 Full Trace Events . | . . . . . Feedback Events . | . . . . . Feedback Blocked . | . . . . . Robot Schematics Acquired . | . . . . . Robots Built . | . . . . . Matter . | . . . . . Time . | . . . . . Total Robot Build Rating . | . . . . . Part Schematics Acquired . | . . . . . Parts Built . | . . . . . Matter . | . . . . . Time . | . . . . . Total Part Build Rating . | . . . . . Parts Repaired 2 | . . 2 . . Time 62 | . . 62 . . Parts Recycled . | . . . . . Recycled Matter . | . . . . . Retrieved Matter . | . . . . . Retrieved Components 12 | . . 9 . 3 Parts Scanalyzed . | . . . . . Part Schematics Acquired . | . . . . . Parts Damaged . | . . . . . Bothacking | -11 -10 -9 -8 -8 ------------ Run | Scr Mat Mat Mat Sto Used RIF Installer . | . . . . . Robots Hacked 1 | . 1 . . . Non-combat 1 | . 1 . . . Combat . | . . . . . Robot Hacks Applied 1 | . 1 . . . parse_system 1 | . 1 . . . Relay Couplers Released . | . . . . . Robots Rewired . | . . . . . Allies Hacked . | . . . . . Hacks Repelled . | . . . . . Allies | -11 -10 -9 -8 -8 -------- Run | Scr Mat Mat Mat Sto Total Allies 12 | . . . . 12 Largest Group 11 | . . . . 11 Highest-Rated Group 189 | . . . . 189 Highest-Rated Ally 99 | . . . . 99 Total Orders . | . . . . . Ally Attacks 75 | . . . . 75 Total Damage 2177 | . . . . 2177 Kills 27 | . . . . 27 Allies Corrupted . | . . . . . Allies Melted . | . . . . . Intel | -11 -10 -9 -8 -8 ------- Run | Scr Mat Mat Mat Sto Robot Analysis Total 4 | . . 1 2 1 Derelict Logs Recovered . | . . . . . Drone Launches . | . . . . . Drone Recoveries . | . . . . . Exploration | -11 -10 -9 -8 -8 ------------- Run | Scr Mat Mat Mat Sto Turns Passed 5311 | 152 183 2279 1397 1300 Spaces Moved 3407 | 110 178 1516 800 803 Core 25 | 2 . . 23 . Treads 8 | . . . . 8 Legs 1002 | . . . 668 334 Wheels 1864 | 108 178 1516 62 . Hover 508 | . . . 47 461 Flight . | . . . . . Fastest Speed 50 | 50 80 90 50 102 Average Speed 113 | 79 80 95 136 136 Slowest Speed 290 | 80 80 120 210 290 Overloaded Moves . | . . . . . Propulsion Burnouts . | . . . . . Robots Hopped . | . . . . . Cave-ins Triggered . | . . . . . Exploration Rate (%) 48 | 4 42 78 33 86 Regions Visited 4 Branch Regions 1 Pre-discovered Areas . | . . . . . Known Exits Taken . | . . . . . Unknown Exits Taken 4 | 1 1 1 1 . Scrap Searched . | . . . . . Spaces Dug . | . . . . . Terrain Destroyed 50 | . . 24 4 22 Melee . | . . . . . Projectile 5 | . . . . 5 AOE 45 | . . 24 4 17 Terrain Rammed . | . . . . . Walls Destroyed . | . . . . . Machines Disabled . | . . . . . Actions | -11 -10 -9 -8 -8 --------- Run | Scr Mat Mat Mat Sto Total 4379 | 148 198 2122 967 944 Wait 364 | . . 331 5 28 Move 3403 | 109 177 1515 799 803 Hop . | . . . . . Pick Up 69 | 9 1 31 15 13 Fast Attach 46 | 8 1 13 16 8 Attach 16 | . . 9 5 2 Detach . | . . . . . Swap 60 | 1 3 29 11 16 Drop 98 | 7 3 40 23 25 Fire 300 | 14 12 153 72 49 Melee 18 | . 1 . 17 . Ram 5 | . . 1 4 . Kick . | . . . . . Crush . | . . . . . Escape Stasis . | . . . . . Rewire . | . . . . . Trap . | . . . . . Miscellaneous . | . . . . . Route ------- -11/Scrapyard -10/Materials -9/Materials (discovered 3 exits: *Mat x2 / [*Min]) -8/Materials -8/Storage (discovered 2 exits: [*Fac] / Rec) History --------- Turn | Location | Event 22 | -11/Scrapyard | Discovered new exit (range 14) 153 | -11/Scrapyard | Entered Materials 333 | -10/Materials | Build established: Mutant 334 | -10/Materials | Discovered new exit (range 3) 336 | -10/Materials | Entered another Materials area 336 | -9/Materials | Evolved 2 slots: Propulsion x1, Utility x1 643 | -9/Materials | Build established: Scavenger-Mutant 1319 | -9/Materials | Discovered new exit (range 15) 1457 | -9/Materials | Discovered new exit (range 15) 1881 | -9/Materials | Repaired Broken Wheel 1907 | -9/Materials | Repaired Wheel 2211 | -9/Materials | Discovered new exit (range 12) 2237 | -9/Materials | Lost 3 parts (3w) 2336 | -9/Materials | First assault squad dispatched 2379 | -9/Materials | Core integrity fell below 50% 2453 | -9/Materials | Lost 5 parts (1p1n3w) 2615 | -9/Materials | Entered another Materials area 2615 | -8/Materials | Evolved 2 slots: Power x1, Utility x1 2772 | -8/Materials | Lost 8 parts (2p3n2u1w) 3311 | -8/Materials | Core integrity fell below 50% 3384 | -8/Materials | Discovered new exit (range 13) 3553 | -8/Materials | Lost 3 parts (1p1n1w) 4012 | -8/Materials | Entered Storage 4021 | -8/Storage | Met 01-MTF 4349 | -8/Storage | Garrison activated, responded to threat 4721 | -8/Storage | Identified exit to Recycling 4825 | -8/Storage | Discovered new exit (range 5) 4887 | -8/Storage | Build established: Mutant 5029 | -8/Storage | Core integrity fell below 20% 5102 | -8/Storage | Assisted by bots powering up and referring to "LRC-V3" 5212 | -8/Storage | First assault squad dispatched 5312 | -8/Storage | Destroyed by D-53 Grenadier with Mini Grenade Launcher Last Messages --------------- 05254_ Dropped Lgt. Deuterium Engine. 05254_ Acquired Deuterium Engine. 05283_ The unstable cave ceiling collapses. 05283_ Aluminum Leg crushed. 05283_ Chain reaction triggered in Lgt. Nuclear Core. 05287_ ALERT: Construction progress impeded, dispatching reinforcements to local area. 05287_ Shock Bomb Launcher destroyed. 05293_ R-06 Scavenger destroyed. 05295_ The unstable cave ceiling collapses. 05297_ Cmb. Airjet melted. 05297_ D-53 Grenadier destroyed. 05297_ R-06 Scavenger collects Aluminum Leg. 05298_ The unstable cave ceiling collapses. 05301_ R-06 Scavenger collects Carbon-fiber Leg. 05308_ U-05 Engineer destroyed. 05310_ Hvy. EM Shotgun destroyed. 05310_ R-06 Scavenger destroyed. 05312_ The unstable cave ceiling collapses. 05312_ K-01 Serf collects debris. Map ----- +----------------------------------------------------+ | | | | | | | | | | | | | | | | | | | | | | | | | | | | | | | | | | | ?????????????????????????????????????????????????? | | ???????????????????###???????????????????????????? | | ?????????????????### #####?????????#????????????? | | ################## ######## ############## | | ^ *!% [] | | ## ^ ^ =* | | ?# ^ k *%= %[ | | ?##=! = # ###############+##+### | | ###!! = % @ #????????# | | d % ! #????????# "" | | """T"" ** #????????# "Y | | # ### ##+######## ########## ""!/ | | ###?# # #?## * " # + + """ | | ????# # #?# %! % R" # ## ## """ | | ????# # !### % "" # !*=## ## """ | | ????# =#%% ## #**%*#%= #= | | ????# =# ] =### ## ###### =*!+!%[#+##+#### | | ????# #% !## ####??# #!! #%=^ #??? | | ##### # ## #?????# *##%## #??? | | # ## ! ##?????# ##=## #??? | | + ## !"" #??????# ##%## #??? | | # #!% ## """[[" #?????######## ## #??? | | # # = ## ?"! " #?????# ??# ## k#??? | | # + ## ?"""" #?????? """" # ## #??? | | # ###### ## ??? #?????? """" + #??? | | # #????############????###?????? """" #### k ###+ | | # ###??????????????????????????? """?????# | | #/######???????????????????????? ?????###+## | | #????????????????????????Y??????# # | | #######?????????????????????????#"" #k " | | # ###########???????????????#"T # " | | # [ = #???????????????#"" # a" | | + = #???????????????# # | +----------------------------------------------------+ Best States ------------- Heat Dissipation 45 Energy Generation 23 Energy Capacity 460 Matter Stores 300 Matter Capacity 300 Sight Range 16 Terrain Scan Range 16 Terrain Scan Density 85 Armor Coverage 600 Evasion (%) 55 Recoil Reduction 1 Offensive Hacking 10 Item Schematics ----------------- None Robot Schematics ------------------ None Fabricated ------------ Nothing Alien Tech Used ----------------- None Achievements -------------- None Challenges ------------ None Game ------ Seed AntimissileDisruptorSpear Manual? 0 Play Time 00:42:36 Cumulative 32.0 hours Start 2022.02.05 @ 02:29:14 End 2022.02.05 @ 03:06:54 Sessions 1 Manual Loads 0 Difficulty Rogue Special Mode None Game No. 48 Rogue 48 Adventurer 0 Explorer 0 Win Type - Total 0 Types 0/0/0/0/0/0/0/0/0 Lore% 46 Gallery% 43 Achievement% 36 Wizard Run 0 Options --------- ASCII 0 Keyboard 0 Movement Numpad Keybinds 0 Fullscreen 1 Font 24/Smallcaps Map View 76x50 Tactical HUD 1 Map Filters NONE Filters NONE Steam 1 RUN: a59c9933-d939-431b-ac66-14429af32a72